bitfinex/quotes_BTCUSD_20240901
["timestamp","ask_amount","ask_price","bid_price","bid_amount"]
[1725194163179,1.821545,58263.0,58262.0,0.04016]
[1725194167784,2.719177,58263.0,58262.0,0.04016]
[1725194168032,2.41803851,58263.0,58262.0,0.04016]
[1725194170074,2.76131151,58263.0,58262.0,0.04016]
[1725194171789,2.76031151,58263.0,58262.0,0.02816]
[1725194171995,2.76031151,58263.0,58262.0,0.03016]
[1725194172402,2.75931151,58263.0,58262.0,0.01916]
[1725194172612,2.75931151,58263.0,58262.0,0.01716]
[1725194172817,2.75931151,58263.0,58262.0,0.02016]
[1725194174063,3.10258451,58263.0,58262.0,0.02016]
[1725194175003,3.10258451,58263.0,58262.0,0.01816]
[1725194175207,1.544958,58254.0,58253.0,0.0008998]
[1725194175378,1.717958,58254.0,58253.0,0.0008998]
[1725194175743,2.129184,58254.0,58253.0,0.0008998]
[1725194175997,2.49944499,58254.0,58253.0,0.0008998]
[1725194176698,2.38008599,58254.0,58253.0,0.0008998]
[1725194176925,2.35410599,58254.0,58253.0,0.0008998]
[1725194177134,2.35510599,58254.0,58253.0,0.0108998]
[1725194177336,2.37307865,58254.0,58253.0,0.0108998]
[1725194178296,2.37407865,58254.0,58253.0,0.0218998]
[1725194178519,2.40560465,58254.0,58253.0,0.0218998]
[1725194179385,2.29769265,58254.0,58253.0,0.0218998]
[1725194179566,2.04019165,58254.0,58253.0,0.0218998]
[1725194180271,1.69686765,58254.0,58253.0,0.0218998]
[1725194185041,1.24854365,58254.0,58253.0,0.2104998]
[1725194185415,1.203634,58254.0,58253.0,0.22954178]
[1725194185634,0.9544044,58254.0,58253.0,0.23739473]
[1725194185988,1.1260664,58254.0,58253.0,0.23739473]
[1725194186397,1.2260664,58254.0,58253.0,0.23739473]
[1725194187004,1.2260664,58254.0,58253.0,0.22954178]
[1725194188761,1.2260664,58254.0,58253.0,0.2104998]
[1725194188974,1.2260664,58254.0,58253.0,0.22953785]
[1725194189377,1.2260664,58254.0,58253.0,0.23738863]
[1725194190112,0.8827424,58254.0,58253.0,0.23738863]
[1725194190322,0.8827424,58254.0,58253.0,0.23938863]
[1725194191149,0.8827424,58254.0,58253.0,0.21838863]
[1725194191150,0.8807424,58254.0,58253.0,0.21838863]
[1725194191554,0.8827424,58254.0,58253.0,0.24438863]
[1725194191722,0.8827424,58254.0,58253.0,0.22535058]
[1725194191946,0.8827424,58254.0,58253.0,0.24438739]
[1725194192363,0.90967456,58254.0,58253.0,0.24438739]
[1725194192953,0.01581794,58254.0,58253.0,0.42605139]
[1725194193266,0.000819,58263.0,58253.0,0.42605139]
[1725194193267,0.514933,58260.0,58259.0,0.1756]
[1725194193473,0.514933,58260.0,58259.0,0.21763681]
[1725194193699,0.514933,58260.0,58259.0,0.22748662]
[1725194194337,0.171645,58260.0,58259.0,0.22748662]
[1725194194783,0.171645,58260.0,58259.0,0.24048662]
[1725194194985,0.171645,58260.0,58259.0,0.25348662]
[1725194195197,0.271645,58260.0,58259.0,0.25348662]
[1725194196118,0.614933,58260.0,58259.0,0.24048662]
[1725194196360,0.614933,58260.0,58259.0,0.33153199]
[1725194196570,0.271645,58260.0,58259.0,0.33153199]
[1725194197001,0.271645,58260.0,58259.0,0.31853199]
[1725194197848,0.271645,58260.0,58259.0,0.33253199]
[1725194198824,0.271645,58260.0,58259.0,0.33250584]
[1725194199204,0.29857341,58260.0,58259.0,0.33250584]
[1725194201295,0.271645,58260.0,58259.0,0.33250584]
[1725194201539,0.271645,58260.0,58259.0,0.33249612]
[1725194202472,0.614933,58260.0,58259.0,0.2554769]
[1725194203225,0.614933,58260.0,58259.0,0.3581692]
[1725194203876,0.614933,58260.0,58259.0,0.2554769]
[1725194204085,0.614933,58260.0,58259.0,0.35815709]
[1725194204505,0.614933,58260.0,58259.0,0.2554769]
[1725194204721,0.64186146,58260.0,58259.0,0.2554769]
[1725194204958,0.64186146,58260.0,58259.0,0.32748803]
[1725194205174,0.64186146,58260.0,58259.0,0.32248803]
[1725194205387,0.64186146,58260.0,58259.0,0.24347752]
[1725194205601,0.64186146,58260.0,58259.0,0.32248715]
[1725194205809,0.64186146,58260.0,58259.0,0.32248794]
[1725194207325,0.64186146,58260.0,58259.0,0.24547752]
[1725194207537,0.958221,58260.0,58259.0,0.32248618]
[1725194207941,0.959039,58260.0,58259.0,0.32248618]
[1725194208150,0.959039,58260.0,58259.0,0.24547752]
[1725194208797,0.959039,58260.0,58259.0,0.32248618]
[1725194209006,0.959039,58260.0,58259.0,0.24547752]
[1725194209209,0.959039,58260.0,58259.0,0.32248618]
[1725194209418,0.959039,58260.0,58259.0,0.24547752]
[1725194209623,0.959039,58260.0,58259.0,0.32248618]
[1725194210239,0.959039,58260.0,58259.0,0.32247684]
[1725194210850,0.98596774,58260.0,58259.0,0.32247684]
[1725194211000,0.98596774,58260.0,58259.0,0.24547752]
[1725194211584,0.98596774,58260.0,58259.0,0.3224779]
[1725194211996,0.98596774,58260.0,58259.0,0.24547858]
[1725194212360,0.98596774,58260.0,58259.0,0.3224779]
[1725194212565,0.98596774,58260.0,58259.0,0.24347858]
[1725194212893,1.67254374,58260.0,58259.0,0.05487858]
[1725194213297,1.67254374,58260.0,58259.0,0.04702877]
[1725194214249,1.645615,58260.0,58259.0,0.04702877]
[1725194214458,1.645615,58260.0,58259.0,0.07002877]
[1725194214858,1.645615,58260.0,58259.0,0.07003318]
[1725194217019,1.718515,58260.0,58259.0,0.07003318]
[1725194217220,1.806815,58260.0,58259.0,0.07003318]
[1725194217626,1.83374652,58260.0,58259.0,0.07003318]
[1725194218251,1.83374652,58260.0,58259.0,0.07003622]
[1725194219383,2.22416903,58260.0,58259.0,0.04703622]
[1725194219588,2.18203452,58260.0,58259.0,0.04703622]
[1725194219798,2.18203452,58260.0,58259.0,0.028]
[1725194220415,2.18203452,58260.0,58259.0,0.014]
[1725194220620,1.544958,58254.0,58253.0,0.0008998]
[1725194220840,1.725658,58254.0,58253.0,0.0008998]
[1725194221319,2.159182,58254.0,58253.0,0.0008998]
[1725194222593,2.159182,58254.0,58253.0,0.0108998]
[1725194223543,2.159182,58254.0,58253.0,0.0228998]
[1725194223942,2.159182,58254.0,58253.0,0.0108998]
[1725194224350,2.159182,58254.0,58253.0,0.0328998]
[1725194224787,2.1861175,58254.0,58253.0,0.0328998]
[1725194226991,2.0959175,58254.0,58253.0,0.0328998]
[1725194228992,1.9242555,58254.0,58253.0,0.0328998]
[1725194229405,2.0959175,58254.0,58253.0,0.0328998]
[1725194231373,2.068982,58254.0,58253.0,0.0328998]
[1725194232164,1.993282,58254.0,58253.0,0.0328998]
[1725194233853,1.9941,58254.0,58253.0,0.0328998]
[1725194234408,2.87852951,58254.0,58253.0,0.0328998]
[1725194234609,2.90546564,58254.0,58253.0,0.0328998]
[1725194234995,2.44940964,58254.0,58253.0,0.0328998]
[1725194235457,2.22927064,58254.0,58253.0,0.0328998]
[1725194235706,2.35177513,58254.0,58253.0,0.0328998]
[1725194238036,2.02103613,58254.0,58253.0,0.0328998]
[1725194238244,1.67771213,58254.0,58253.0,0.0328998]
[1725194238631,1.650776,58254.0,58253.0,0.0328998]
[1725194241478,1.67771239,58254.0,58253.0,0.0328998]
[1725194241885,1.650776,58254.0,58253.0,0.0328998]
[1725194242305,1.650776,58254.0,58253.0,0.1071998]
[1725194244909,1.645776,58254.0,58253.0,0.1071998]
[1725194245142,1.645776,58254.0,58253.0,0.1301998]
[1725194245350,1.67271187,58254.0,58253.0,0.1301998]
[1725194246739,1.645776,58254.0,58253.0,0.1301998]
[1725194247180,1.645776,58254.0,58253.0,0.1101998]
[1725194247392,1.645776,58254.0,58253.0,0.1241998]
[1725194247567,1.645776,58254.0,58253.0,0.1121998]
[1725194248033,1.645776,58254.0,58253.0,0.1261998]
[1725194248476,1.645776,58254.0,58253.0,0.1121998]
[1725194248968,1.645776,58254.0,58253.0,0.1261998]
[1725194249912,1.645776,58254.0,58253.0,0.0518998]
[1725194250117,1.67271128,58254.0,58253.0,0.0518998]
[1725194251310,1.645776,58254.0,58253.0,0.0518998]
[1725194252874,1.645776,58254.0,58253.0,0.1234998]
[1725194254859,1.645776,58254.0,58253.0,0.2150998]
[1725194255080,1.645776,58254.0,58253.0,0.22222743]
[1725194255769,1.645776,58254.0,58253.0,0.20822743]
[1725194256394,1.302452,58254.0,58253.0,0.21022743]
[1725194256600,1.302452,58254.0,58253.0,0.22636345]
[1725194256877,1.302452,58254.0,58253.0,0.21236345]
[1725194257101,1.302452,58254.0,58253.0,0.22436345]
[1725194257527,1.302452,58254.0,58253.0,0.20822743]
[1725194257528,1.32938444,58254.0,58253.0,0.20822743]
[1725194257738,1.32938444,58254.0,58253.0,0.31554481]
[1725194257948,1.32938444,58254.0,58253.0,0.23622743]
[1725194258154,1.32938444,58254.0,58253.0,0.22222743]
[1725194258382,1.32938444,58254.0,58253.0,0.29940898]
[1725194258592,1.32938444,58254.0,58253.0,0.31340898]
[1725194259460,1.32938444,58254.0,58253.0,0.23622743]
[1725194259884,1.32938444,58254.0,58253.0,0.25236289]
[1725194260095,1.32938444,58254.0,58253.0,0.23622743]
[1725194260507,1.32938444,58254.0,58253.0,0.3552716]
[1725194260934,1.302452,58254.0,58253.0,0.23622743]
[1725194261159,1.302452,58254.0,58253.0,0.25436183]
[1725194261369,1.302452,58254.0,58253.0,0.38299775]
[1725194261592,1.302452,58254.0,58253.0,0.38313616]
[1725194262594,1.302452,58254.0,58253.0,0.25436183]
[1725194262767,1.302452,58254.0,58253.0,0.24036183]
[1725194263594,1.302452,58254.0,58253.0,0.21236183]
[1725194263868,1.302452,58254.0,58253.0,0.22636183]
[1725194264288,1.32938408,58254.0,58253.0,0.22636183]
[1725194264492,1.32938408,58254.0,58253.0,0.24036183]
[1725194264724,1.32938408,58254.0,58253.0,0.25436183]
[1725194264958,1.32938408,58254.0,58253.0,0.24036183]
[1725194265375,1.32938408,58254.0,58253.0,0.25436183]
[1725194265607,1.32938408,58254.0,58253.0,0.38313613]
[1725194267260,0.98606008,58254.0,58253.0,0.25436183]
[1725194268221,0.959128,58254.0,58253.0,0.25436183]
[1725194268452,0.959128,58254.0,58253.0,0.38308676]
[1725194268681,0.959128,58254.0,58253.0,0.25436183]
[1725194269359,0.959128,58254.0,58253.0,0.38307271]
[1725194269852,0.98605942,58254.0,58253.0,0.25436183]
[1725194270091,0.98605942,58254.0,58253.0,0.38307536]
[1725194270318,0.98605942,58254.0,58253.0,0.38107536]
[1725194270573,0.98605942,58254.0,58253.0,0.38106535]
[1725194271640,0.98605942,58254.0,58253.0,0.38102779]
[1725194272088,0.98605942,58254.0,58253.0,0.39102779]
[1725194272324,0.959128,58254.0,58253.0,0.39102779]
[1725194272744,0.959128,58254.0,58253.0,0.26236183]
[1725194273175,0.17248,58254.0,58253.0,0.26236183]
[1725194273872,0.515804,58254.0,58253.0,0.26236183]
[1725194274120,0.515804,58254.0,58253.0,0.24622743]
[1725194274334,0.515804,58254.0,58253.0,0.2390998]
[1725194274558,0.515804,58254.0,58253.0,0.26233762]
[1725194276897,0.515804,58254.0,58253.0,0.26433762]
[1725194277291,0.515804,58254.0,58253.0,0.24821514]
[1725194277517,0.515804,58254.0,58253.0,0.26433661]
[1725194277742,0.515804,58254.0,58253.0,0.24821514]
[1725194277959,0.515804,58254.0,58253.0,0.26433708]
[1725194278873,0.515804,58254.0,58253.0,0.24821514]
[1725194279123,0.515804,58254.0,58253.0,0.2643366]
[1725194279352,0.000818,58254.0,58253.0,0.2643366]
[1725194280131,0.17248,58254.0,58253.0,0.2643366]
[1725194280582,0.515804,58254.0,58253.0,0.2643366]
[1725194280815,0.515804,58254.0,58253.0,0.2643359]
[1725194281040,0.515804,58254.0,58253.0,0.28337439]
[1725194282036,0.37023887,58257.0,58256.0,0.012]
[1725194282279,0.37023887,58257.0,58256.0,0.12613849]
[1725194282515,0.37023887,58257.0,58256.0,0.21037074]
[1725194282770,0.37023887,58257.0,58256.0,0.21037079]
[1725194283316,0.54189187,58257.0,58256.0,0.13325193]
[1725194283539,0.54189187,58257.0,58256.0,0.22265193]
[1725194283787,0.54189187,58257.0,58256.0,0.33947315]
[1725194284026,0.54189187,58257.0,58256.0,0.35347315]
[1725194284520,0.514962,58257.0,58256.0,0.25065193]
[1725194284761,0.514962,58257.0,58256.0,0.35347315]
[1725194285242,0.44411,58260.0,58259.0,0.1635]
[1725194285482,0.44411,58260.0,58259.0,0.28607794]
[1725194285700,0.44411,58260.0,58259.0,0.22264966]
[1725194285701,0.100818,58260.0,58259.0,0.22264966]
[1725194285915,0.000818,58260.0,58259.0,0.22264966]
[1725194286377,0.000818,58260.0,58259.0,0.22264483]
[1725194286378,0.172462,58260.0,58259.0,0.22264483]
[1725194286610,0.172462,58260.0,58259.0,0.29774469]
[1725194286611,0.859038,58260.0,58259.0,0.29774469]
[1725194286825,0.859038,58260.0,58259.0,0.23464841]
[1725194287035,0.859038,58260.0,58259.0,0.32574827]
[1725194287495,0.859038,58260.0,58259.0,0.23664841]
[1725194287703,0.88596606,58260.0,58259.0,0.23664841]
[1725194287916,0.88596606,58260.0,58259.0,0.26464841]
[1725194289416,0.88596606,58260.0,58259.0,0.26264841]
[1725194289650,0.88596606,58260.0,58259.0,0.26264954]
[1725194290528,0.88596606,58260.0,58259.0,0.33977087]
[1725194290968,0.88596606,58260.0,58259.0,0.26264954]
[1725194291204,0.88596606,58260.0,58259.0,0.26464954]
[1725194291434,0.859038,58260.0,58259.0,0.26464954]
[1725194291895,0.859038,58260.0,58259.0,0.36747798]
[1725194292121,0.859038,58260.0,58259.0,0.26464954]
[1725194293541,0.859038,58260.0,58259.0,0.39318509]
[1725194294590,0.859038,58260.0,58259.0,0.26464954]
[1725194294869,0.88596599,58260.0,58259.0,0.26464954]
[1725194295093,0.88596599,58260.0,58259.0,0.39318509]
[1725194296535,0.88596599,58260.0,58259.0,0.37414672]
[1725194296776,0.88596599,58260.0,58259.0,0.3931855]
[1725194297426,0.859038,58260.0,58259.0,0.26464995]
[1725194298068,0.859038,58260.0,58259.0,0.39325808]
[1725194298283,0.859038,58260.0,58259.0,0.26464995]
[1725194299319,0.859038,58260.0,58259.0,0.24561117]
[1725194299538,0.859038,58260.0,58259.0,0.26464971]
[1725194300676,0.88596596,58260.0,58259.0,0.26464971]
[1725194301326,0.859038,58260.0,58259.0,0.26464971]
[1725194302855,0.859038,58260.0,58259.0,0.26465016]
[1725194306177,0.859038,58260.0,58259.0,0.24561117]
[1725194306393,0.859038,58260.0,58259.0,0.26465046]
[1725194307474,1.202326,58260.0,58259.0,0.26465046]
[1725194308546,1.2022544,58260.0,58259.0,0.26465046]
[1725194310770,1.22918376,58260.0,58259.0,0.26465046]
[1725194313695,1.2022544,58260.0,58259.0,0.26465046]
[1725194315631,1.2022544,58260.0,58259.0,0.41917759]
[1725194315862,1.2022544,58260.0,58259.0,0.26465046]
[1725194316121,1.2022544,58260.0,58259.0,0.24561117]
[1725194316346,1.2022544,58260.0,58259.0,0.26465195]
[1725194316973,1.22918239,58260.0,58259.0,0.26465195]
[1725194317181,1.22918239,58260.0,58259.0,0.27754985]
[1725194317441,1.22918239,58260.0,58259.0,0.43207698]
[1725194317694,1.22918239,58260.0,58259.0,0.27754985]
[1725194317898,1.22918239,58260.0,58259.0,0.43207698]
[1725194319041,1.22918239,58260.0,58259.0,0.27754985]
[1725194319512,1.22918239,58260.0,58259.0,0.43227499]
[1725194319713,1.22918239,58260.0,58259.0,0.27755141]
[1725194322728,1.2022544,58260.0,58259.0,0.27755141]
[1725194322934,1.2022544,58260.0,58259.0,0.26465351]
[1725194323356,0.8589664,58260.0,58259.0,0.26465351]
[1725194323783,0.8589664,58260.0,58259.0,0.27755353]
[1725194326184,0.88589371,58260.0,58259.0,0.25851119]
[1725194326393,0.88589371,58260.0,58259.0,0.26465398]
[1725194326623,0.88589371,58260.0,58259.0,0.27755323]
[1725194328041,0.88589371,58260.0,58259.0,0.27845303]
[1725194329657,0.88589371,58260.0,58259.0,0.25941022]
[1725194329842,0.88589371,58260.0,58259.0,0.26555237]
[1725194330285,0.88589371,58260.0,58259.0,0.27845065]
[1725194331938,0.8589664,58260.0,58259.0,0.27845065]
[1725194332140,0.62797896,58260.0,58259.0,0.27845065]
[1725194332346,0.79962296,58260.0,58259.0,0.27845065]
[1725194333181,0.79962296,58260.0,58259.0,0.27845059]
[1725194333392,1.14291096,58260.0,58259.0,0.11495056]
[1725194335209,1.16983915,58260.0,58259.0,0.10783939]
[1725194335979,1.16983915,58260.0,58259.0,0.11494656]
[1725194336311,1.16983915,58260.0,58259.0,0.09590685]
[1725194336575,1.16983915,58260.0,58259.0,0.12785074]
[1725194336782,1.16983915,58260.0,58259.0,0.10169974]
[1725194336985,1.16983915,58260.0,58259.0,0.12074377]
[1725194337192,1.16983915,58260.0,58259.0,0.10284371]
[1725194337402,1.16983915,58260.0,58259.0,0.12285104]
[1725194337746,1.16983915,58260.0,58259.0,0.10995116]
[1725194337950,1.14291096,58260.0,58259.0,0.10995116]
[1725194338147,1.14291096,58260.0,58259.0,0.10284399]
[1725194339103,1.14291096,58260.0,58259.0,0.09784399]
[1725194339536,1.14291096,58260.0,58259.0,0.07484399]
[1725194339750,1.14291096,58260.0,58259.0,0.17801555]
[1725194339751,1.58619896,58260.0,58259.0,0.17801555]
[1725194339959,1.66359896,58260.0,58259.0,0.16511411]
[1725194340180,1.66359896,58260.0,58259.0,0.06194383]
[1725194340642,1.66441696,58260.0,58259.0,0.04794383]
[1725194341058,1.66441696,58260.0,58259.0,0.01994383]
[1725194341274,1.66441696,58260.0,58259.0,0.03394383]
[1725194341275,2.22876611,58260.0,58259.0,0.03394383]
[1725194341484,2.83144111,58260.0,58259.0,0.03394383]
[1725194341697,2.71669011,58260.0,58259.0,0.0148998]
[1725194342107,2.71669011,58260.0,58259.0,0.0288998]
[1725194342108,2.68976051,58260.0,58259.0,0.0288998]
[1725194342523,2.68976051,58260.0,58259.0,0.0148998]
[1725194342728,2.68976051,58260.0,58259.0,0.0008998]
[1725194342925,2.68976051,58260.0,58259.0,0.0048998]
[1725194343571,2.68976051,58260.0,58259.0,0.0078998]
[1725194343812,2.68976051,58260.0,58259.0,8e-07]
[1725194344051,2.54512451,58260.0,58259.0,8e-07]
[1725194344982,2.231567,58255.0,58254.0,0.0008998]
[1725194345191,3.68838,58255.0,58254.0,0.0008998]
[1725194345396,3.61403,58255.0,58254.0,0.0008998]
[1725194345607,3.61759051,58255.0,58254.0,0.0008998]
[1725194345790,3.17038351,58255.0,58254.0,0.0008998]
[1725194346012,3.111805,58255.0,58254.0,0.0008998]
[1725194346244,2.971805,58255.0,58254.0,0.0008998]
[1725194346656,2.971805,58255.0,58254.0,0.0078998]
[1725194346866,2.971805,58255.0,58254.0,0.0158998]
[1725194347071,2.866162,58255.0,58254.0,0.0158998]
[1725194350622,2.866162,58255.0,58249.0,6e-07]
[1725194350623,2.236716,58251.0,58250.0,5e-07]
[1725194350739,2.502516,58251.0,58250.0,5e-07]
[1725194353626,2.54465051,58251.0,58250.0,5e-07]
[1725194354647,2.57159107,58251.0,58250.0,5e-07]
[1725194355788,2.66976882,58251.0,58250.0,5e-07]
[1725194355940,2.57159107,58251.0,58250.0,5e-07]
[1725194356831,2.57159107,58251.0,58230.0,0.0793]
[1725194356832,0.171688,58245.0,58244.0,9e-07]
[1725194357041,0.782265,58245.0,58244.0,9e-07]
[1725194357253,1.812396,58245.0,58244.0,9e-07]
[1725194357456,2.155773,58245.0,58244.0,9e-07]
[1725194357666,2.49915,58245.0,58244.0,9e-07]
[1725194357869,2.50415,58245.0,58244.0,9e-07]
[1725194358083,2.71483615,58245.0,58244.0,9e-07]
[1725194358919,2.54628451,58245.0,58244.0,9e-07]
[1725194359130,2.54728451,58245.0,58244.0,9e-07]
[1725194359334,2.55028451,58245.0,58244.0,9e-07]
[1725194359771,2.54928451,58245.0,58244.0,9e-07]
[1725194359990,2.55328451,58245.0,58244.0,9e-07]
[1725194360416,2.72183615,58245.0,58244.0,9e-07]
[1725194361671,2.51115,58245.0,58244.0,9e-07]
[1725194362710,2.51015,58245.0,58244.0,9e-07]
[1725194363120,2.51115,58245.0,58244.0,9e-07]
[1725194363366,2.50515,58245.0,58244.0,9e-07]
[1725194364188,1.888991,58232.0,58231.0,0.0793]
[1725194364401,1.988991,58232.0,58231.0,0.0793]
[1725194364856,2.01593627,58232.0,58231.0,0.0793]
[1725194365067,0.686924,58231.0,58227.0,0.0793]
[1725194365270,0.686924,58231.0,58228.0,0.023]
[1725194365271,0.1,58230.0,58228.0,0.023]
[1725194366214,0.171738,58228.0,58227.0,0.0793]
[1725194366427,0.271738,58228.0,58227.0,0.1143]
[1725194366952,1.43082332,58228.0,58227.0,0.12143646]
[1725194367253,1.43082332,58228.0,58227.0,0.1143]
[1725194367430,1.60256132,58228.0,58227.0,0.1143]
[1725194367809,1.60256132,58228.0,58227.0,0.1023]
[1725194368597,1.60456132,58228.0,58227.0,0.1253]
[1725194369059,1.60456132,58228.0,58227.0,0.023]
[1725194369261,1.60389524,58228.0,58227.0,0.023]
[1725194369637,1.60389524,58228.0,58227.0,0.1023]
[1725194372270,1.60389524,58228.0,58227.0,0.2]
[1725194373444,1.94737224,58228.0,58227.0,0.2]
[1725194373651,1.95237224,58228.0,58227.0,0.2]
[1725194376414,1.95237224,58228.0,58227.0,0.2008998]
[1725194377289,1.95237224,58228.0,58227.0,0.1031998]
[1725194377900,1.97931872,58228.0,58227.0,0.1031998]
[1725194380017,1.63584172,58228.0,58227.0,0.1031998]
[1725194381268,1.60889524,58228.0,58227.0,0.1031998]
[1725194384781,1.60889524,58228.0,58227.0,0.0238998]
[1725194384782,1.63584317,58228.0,58227.0,0.0238998]
[1725194385244,1.97932017,58228.0,58227.0,0.0238998]
[1725194387605,1.95237224,58228.0,58227.0,0.0238998]
[1725194388302,2.08785124,58228.0,58227.0,0.0238998]
[1725194388526,2.031602,58228.0,58227.0,0.0238998]
[1725194389229,2.015541,58228.0,58227.0,0.0238998]
[1725194390588,2.115541,58228.0,58227.0,0.0238998]
[1725194390798,2.14248946,58228.0,58227.0,0.0238998]
[1725194392062,2.60090097,58228.0,58227.0,8e-07]
[1725194392278,2.48230097,58228.0,58227.0,8e-07]
[1725194392714,2.44016646,58228.0,58227.0,8e-07]
[1725194393130,2.43916646,58228.0,58227.0,8e-07]
[1725194393536,2.44016646,58228.0,58227.0,8e-07]
[1725194393950,2.43916646,58228.0,58227.0,8e-07]
[1725194394246,2.43816646,58228.0,58227.0,8e-07]
[1725194394456,2.413218,58228.0,58227.0,8e-07]
[1725194394866,2.45535251,58228.0,58227.0,8e-07]
[1725194395102,2.45735251,58228.0,58227.0,8e-07]
[1725194397687,2.48430273,58228.0,58227.0,8e-07]
[1725194399164,2.36936822,58228.0,58227.0,8e-07]
[1725194400208,2.36836822,58228.0,58227.0,8e-07]
[1725194400610,2.36536822,58228.0,58227.0,8e-07]
[1725194401620,2.40750273,58228.0,58227.0,8e-07]
[1725194402092,2.47950273,58228.0,58227.0,8e-07]
[1725194402706,2.36536822,58228.0,58227.0,8e-07]
[1725194404166,2.02189122,58228.0,58227.0,8e-07]
[1725194404380,1.67841422,58228.0,58227.0,0.1633008]
[1725194404592,1.67841422,58228.0,58227.0,0.0715008]
[1725194404808,1.88348022,58228.0,58227.0,0.0715008]
[1725194405871,2.32744522,58228.0,58227.0,0.0715008]
[1725194406967,2.32744522,58228.0,58227.0,8e-07]
[1725194407176,1.72054873,58228.0,58227.0,8e-07]
[1725194407592,1.67841422,58228.0,58227.0,8e-07]
[1725194408858,1.67841422,58228.0,58227.0,0.0715008]
[1725194409072,2.02189122,58228.0,58227.0,8e-07]
[1725194410428,2.09389122,58228.0,58227.0,8e-07]
[1725194410640,2.02189122,58228.0,58227.0,8e-07]
[1725194411912,2.02389122,58228.0,58227.0,8e-07]
[1725194412665,2.02589122,58228.0,58227.0,8e-07]
[1725194412923,2.02789122,58228.0,58227.0,8e-07]
[1725194413152,2.19444286,58228.0,58227.0,8e-07]
[1725194413379,2.19644286,58228.0,58227.0,8e-07]
[1725194413604,2.02789122,58228.0,58227.0,8e-07]
[1725194416534,1.68441422,58228.0,58227.0,0.0797008]
[1725194420849,1.73179873,58228.0,58227.0,0.0797008]
[1725194421814,2.07527573,58228.0,58227.0,8e-07]
[1725194423187,2.02789122,58228.0,58227.0,8e-07]
[1725194423638,2.02789122,58228.0,58227.0,0.1741008]
[1725194423890,2.02789122,58228.0,58227.0,0.0797008]
[1725194424123,2.02789122,58228.0,58227.0,8e-07]
[1725194434779,1.68441422,58228.0,58227.0,0.1794008]
[1725194434927,1.73179873,58228.0,58227.0,0.0798008]
[1725194435126,2.01783573,58228.0,58227.0,0.0798008]
[1725194435772,2.19703573,58228.0,58227.0,8e-07]
[1725194435973,2.07327573,58228.0,58227.0,8e-07]
[1725194436187,2.07427573,58228.0,58227.0,8e-07]
[1725194436391,2.07027573,58228.0,58227.0,8e-07]
[1725194437005,2.06927573,58228.0,58227.0,8e-07]
[1725194437873,2.07027573,58228.0,58227.0,8e-07]
[1725194443477,2.02289122,58228.0,58227.0,8e-07]
[1725194446124,2.02189122,58228.0,58227.0,8e-07]
[1725194449666,1.67841422,58228.0,58227.0,0.1794008]
[1725194450342,1.32993722,58228.0,58227.0,0.1794008]
[1725194450551,1.32993722,58228.0,58227.0,0.18860454]
[1725194450552,1.302987,58228.0,58227.0,0.18860454]
[1725194450760,1.69884851,58228.0,58227.0,0.18860454]
[1725194450995,1.69884851,58228.0,58227.0,0.1794008]
[1725194451246,1.69984851,58228.0,58227.0,0.1794008]
[1725194451457,1.69884851,58228.0,58227.0,0.1794008]
[1725194452063,1.651464,58228.0,58227.0,0.1794008]
[1725194452315,1.652464,58228.0,58227.0,0.1794008]
[1725194452529,1.653464,58228.0,58227.0,0.1794008]
[1725194452954,1.654464,58228.0,58227.0,0.1794008]
[1725194453382,1.653464,58228.0,58227.0,0.1794008]
[1725194453984,1.652464,58228.0,58227.0,0.1794008]
[1725194454187,1.653464,58228.0,58227.0,0.1794008]
[1725194454605,1.652464,58228.0,58227.0,0.1794008]
[1725194455025,1.653464,58228.0,58227.0,0.1794008]
[1725194455463,1.652464,58228.0,58227.0,0.1794008]
[1725194455887,1.654464,58228.0,58227.0,0.1794008]
[1725194456302,1.652464,58228.0,58227.0,0.1794008]
[1725194456512,1.653464,58228.0,58227.0,0.1794008]
[1725194456934,1.648464,58228.0,58227.0,0.1794008]
[1725194458003,1.67541128,58228.0,58227.0,0.1794008]
[1725194462288,2.39143379,58228.0,58227.0,0.1794008]
[1725194462559,1.92578679,58228.0,58227.0,0.1794008]
[1725194462977,2.26926379,58228.0,58227.0,0.1794008]
[1725194463189,2.25327279,58228.0,58227.0,0.1794008]
[1725194465521,2.25327279,58228.0,58227.0,0.0798008]
[1725194465928,1.90979579,58228.0,58227.0,0.0798008]
[1725194466609,2.25327279,58228.0,58227.0,0.0798008]
[1725194467924,2.28586379,58228.0,58227.0,0.0798008]
[1725194468284,2.26926379,58228.0,58227.0,0.0798008]
[1725194468488,2.24667279,58228.0,58227.0,0.0798008]
[1725194468723,2.19928828,58228.0,58227.0,0.0798008]
[1725194470290,2.54276528,58228.0,58227.0,8e-07]
[1725194470502,2.04432551,58228.0,58227.0,8e-07]
[1725194472014,2.11632551,58228.0,58227.0,8e-07]
[1725194474016,2.14327518,58228.0,58227.0,8e-07]
[1725194475280,2.48675218,58228.0,58227.0,8e-07]
[1725194478027,2.58812659,58228.0,58227.0,8e-07]
[1725194478233,2.48675218,58228.0,58227.0,8e-07]
[1725194481891,2.41475218,58228.0,58227.0,8e-07]
[1725194482095,2.07127518,58228.0,58227.0,8e-07]
[1725194482297,2.02389067,58228.0,58227.0,8e-07]
[1725194483111,2.36736767,58228.0,58227.0,8e-07]
[1725194483321,2.02389067,58228.0,58227.0,8e-07]
[1725194485911,2.02389067,58228.0,58227.0,0.0961008]
[1725194486137,1.68041367,58228.0,58227.0,0.0961008]
[1725194486364,1.68041367,58228.0,58227.0,0.1722008]
[1725194486585,2.04334267,58228.0,58227.0,0.1722008]
[1725194486810,2.38681967,58228.0,58227.0,0.1722008]
[1725194487035,2.43420418,58228.0,58227.0,8e-07]
[1725194487249,2.07127518,58228.0,58227.0,8e-07]
[1725194493801,2.04432551,58228.0,58227.0,8e-07]
[1725194497030,2.07127507,58228.0,58227.0,8e-07]
[1725194501424,2.04432551,58228.0,58227.0,8e-07]
[1725194502044,1.996941,58228.0,58227.0,8e-07]
[1725194502792,1.996941,58228.0,58227.0,0.0744008]
[1725194503408,2.016288,58228.0,58227.0,0.1691008]
[1725194503624,1.653464,58228.0,58227.0,0.1691008]
[1725194505278,1.996941,58228.0,58227.0,0.1691008]
[1725194505537,2.27784851,58228.0,58227.0,0.1691008]
[1725194506055,2.62132551,58228.0,58227.0,0.1691008]
[1725194507146,2.64827436,58228.0,58227.0,0.1691008]
[1725194510385,2.60088985,58228.0,58227.0,0.1691008]
[1725194511433,2.573941,58228.0,58227.0,0.1691008]
[1725194513620,2.502363,58228.0,58227.0,0.1691008]
[1725194514096,2.485763,58228.0,58227.0,0.1691008]